[Event "*** Titled Tuesday Blitz"]
[Site "Chess.com"]
[Date "2021.03.30"]
[Round "2"]
[White "Baron_von_Koenig"]
[Black "anon219"]
[Result "0-1"]
[WhiteElo "2554"]
[BlackElo "2855"]
[TimeControl "180+1"]
[EndTime "10:16:57 PDT"]
[Termination "anon219 won by resignation"]

1. b3 {[%clk 0:03:00.9]} 1... d5 {[%clk 0:02:55]} 2. e3 {[%clk 0:03:00.6]} 2...
e5 {[%clk 0:02:50.4]} 3. Bb2 {[%clk 0:03:00.3]} 3... Bd6 {[%clk 0:02:51]} 4. Nf3
{[%clk 0:02:57.1]} 4... Qe7 {[%clk 0:02:47.1]} 5. d4 {[%clk 0:02:55]} 5... e4
{[%clk 0:02:45.9]} 6. Nfd2 {[%clk 0:02:55]} 6... Nf6 {[%clk 0:02:45]} 7. c4
{[%clk 0:02:54.9]} 7... c6 {[%clk 0:02:45]} 8. Be2 {[%clk 0:02:51.5]} 8... O-O
{[%clk 0:02:43.6]} 9. Nc3 {[%clk 0:02:51.4]} 9... a6 {[%clk 0:02:32.6]} 10. c5
{[%clk 0:02:49.6]} 10... Bc7 {[%clk 0:02:32.1]} 11. b4 {[%clk 0:02:49.7]} 11...
Nbd7 {[%clk 0:02:29]} 12. a4 {[%clk 0:02:48.9]} 12... b6 {[%clk 0:02:26.3]} 13.
Qc2 {[%clk 0:02:38.5]} 13... bxc5 {[%clk 0:02:18.3]} 14. bxc5 {[%clk 0:02:35.5]}
14... Rb8 {[%clk 0:02:18.4]} 15. Nb3 {[%clk 0:02:25]} 15... Re8 {[%clk
0:02:09.9]} 16. O-O-O {[%clk 0:02:23.9]} 16... a5 {[%clk 0:02:05.5]} 17. Kb1
{[%clk 0:02:21.1]} 17... Rb7 {[%clk 0:01:50.7]} 18. Ka2 {[%clk 0:02:18.6]} 18...
Nb8 {[%clk 0:01:49]} 19. Nb1 {[%clk 0:02:07.9]} 19... Ra7 {[%clk 0:01:46.1]} 20.
Bc3 {[%clk 0:02:06.6]} 20... Na6 {[%clk 0:01:41.8]} 21. Nxa5 {[%clk 0:01:57.1]}
21... Bd7 {[%clk 0:01:33.8]} 22. Nb3 {[%clk 0:01:48.4]} 22... Rb8 {[%clk
0:01:27]} 23. Qd2 {[%clk 0:01:29.6]} 23... Qd8 {[%clk 0:01:12]} 24. Na3 {[%clk
0:01:26.8]} 24... Nb4+ {[%clk 0:01:02.2]} 25. Bxb4 {[%clk 0:01:23.9]} 25... Rxa4
{[%clk 0:01:03.1]} 26. Bc3 {[%clk 0:01:20.5]} 26... Rba8 {[%clk 0:01:02.3]} 27.
Bb2 {[%clk 0:01:18.1]} 27... Qb8 {[%clk 0:01:02.1]} 28. Ra1 {[%clk 0:01:13]}
28... Qa7 {[%clk 0:00:57.9]} 29. Kb1 {[%clk 0:01:11.2]} 29... Rb8 {[%clk
0:00:57.9]} 30. Bd1 {[%clk 0:00:57.3]} 30... Bg4 {[%clk 0:00:47.7]} 31. Bc2
{[%clk 0:00:56.5]} 31... Qa6 {[%clk 0:00:46.8]} 32. h3 {[%clk 0:00:54.8]} 32...
Be2 {[%clk 0:00:45.1]} 33. Nc1 {[%clk 0:00:53.1]} 33... Rxa3 {[%clk 0:00:40.1]}
34. Nb3 {[%clk 0:00:43.7]} 34... Rxa1+ {[%clk 0:00:36.8]} 35. Nxa1 {[%clk
0:00:43.4]} 35... Ba5 {[%clk 0:00:36.1]} 36. Qc1 {[%clk 0:00:39.4]} 36... Bc3
{[%clk 0:00:35.9]} 37. Nb3 {[%clk 0:00:38.5]} 37... Ra8 {[%clk 0:00:33.8]} 38.
Bxe4 {[%clk 0:00:24.8]} 38... Nxe4 {[%clk 0:00:28.9]} 0-1

[Event "*** Titled Tuesday Blitz"]
[Site "Chess.com"]
[Date "2021.03.30"]
[Round "2"]
[White "ARMQUEEN"]
[Black "bait_or_mate"]
[Result "0-1"]
[WhiteElo "2302"]
[BlackElo "2517"]
[TimeControl "180+1"]
[EndTime "10:16:57 PDT"]
[Termination "bait_or_mate won on time"]

1. e4 {[%clk 0:03:00.9]} 1... c5 {[%clk 0:02:59.1]} 2. Nc3 {[%clk 0:03:00.3]}
2... e6 {[%clk 0:03:00]} 3. f4 {[%clk 0:02:59.5]} 3... Nc6 {[%clk 0:03:00.3]} 4.
Nf3 {[%clk 0:02:59.1]} 4... g6 {[%clk 0:02:59.9]} 5. Bb5 {[%clk 0:02:55.2]} 5...
Nge7 {[%clk 0:02:58.8]} 6. O-O {[%clk 0:02:52]} 6... Bg7 {[%clk 0:02:58.6]} 7.
Bxc6 {[%clk 0:02:50.6]} 7... Nxc6 {[%clk 0:02:54.6]} 8. d3 {[%clk 0:02:50.6]}
8... d6 {[%clk 0:02:54.3]} 9. Qe1 {[%clk 0:02:47.4]} 9... O-O {[%clk 0:02:53.9]}
10. Be3 {[%clk 0:02:36.6]} 10... Rb8 {[%clk 0:02:52]} 11. a4 {[%clk 0:02:34.3]}
11... a6 {[%clk 0:02:51.9]} 12. Ng5 {[%clk 0:02:18.3]} 12... b5 {[%clk
0:02:44.4]} 13. axb5 {[%clk 0:02:17]} 13... axb5 {[%clk 0:02:45.3]} 14. f5
{[%clk 0:02:14.8]} 14... exf5 {[%clk 0:02:42.4]} 15. exf5 {[%clk 0:02:14.7]}
15... Bxf5 {[%clk 0:02:43.3]} 16. Rxf5 {[%clk 0:01:56.9]} 16... gxf5 {[%clk
0:02:44.2]} 17. Qf2 {[%clk 0:01:49]} 17... Nd4 {[%clk 0:02:35.8]} 18. Kh1 {[%clk
0:01:35.7]} 18... Qe7 {[%clk 0:02:21.1]} 19. Re1 {[%clk 0:01:19.5]} 19... Rfe8
{[%clk 0:02:19.4]} 20. Nd5 {[%clk 0:01:05.6]} 20... Qb7 {[%clk 0:02:18.4]} 21.
Nf4 {[%clk 0:00:57]} 21... Re7 {[%clk 0:01:53.7]} 22. Nh5 {[%clk 0:00:55.6]}
22... Rbe8 {[%clk 0:01:41.3]} 23. Nxg7 {[%clk 0:00:25.7]} 23... Kxg7 {[%clk
0:01:42.2]} 24. Bxd4+ {[%clk 0:00:16.8]} 24... cxd4 {[%clk 0:01:39.1]} 25. Qxd4+
{[%clk 0:00:17.7]} 25... f6 {[%clk 0:01:36.8]} 26. Rg1 {[%clk 0:00:16.2]} 26...
Qa7 {[%clk 0:01:19.6]} 27. Qc3 {[%clk 0:00:06.3]} 27... b4 {[%clk 0:01:16.1]}
28. Qd2 {[%clk 0:00:06.1]} 28... fxg5 {[%clk 0:01:12.4]} 29. Qxg5+ {[%clk
0:00:06.2]} 29... Kh8 {[%clk 0:01:12.9]} 30. Qf6+ {[%clk 0:00:06.4]} 30... Rg7
{[%clk 0:01:13.1]} 31. Qxd6 {[%clk 0:00:05.5]} 31... Qf2 {[%clk 0:01:09.5]} 32.
Qc6 {[%clk 0:00:02.8]} 32... Reg8 {[%clk 0:01:02.4]} 33. Qd5 {[%clk 0:00:01.9]}
33... Qxc2 {[%clk 0:00:53.5]} 34. Qd4 {[%clk 0:00:01.6]} 34... b3 {[%clk
0:00:47.9]} 35. h4 {[%clk 0:00:02]} 35... Qe2 {[%clk 0:00:47]} 36. h5 {[%clk
0:00:02.9]} 36... Qxh5+ {[%clk 0:00:46.6]} 0-1

[Event "*** Titled Tuesday Blitz"]
[Site "Chess.com"]
[Date "2021.03.30"]
[Round "2"]
[White "Murad_Ibrahimli"]
[Black "federicosellitti"]
[Result "1-0"]
[WhiteElo "2816"]
[BlackElo "2541"]
[TimeControl "180+1"]
[EndTime "10:16:58 PDT"]
[Termination "Murad_Ibrahimli won by resignation"]

1. Nf3 {[%clk 0:03:00.9]} 1... Nf6 {[%clk 0:02:59.3]} 2. g3 {[%clk 0:02:53.2]}
2... g6 {[%clk 0:02:59.7]} 3. Bg2 {[%clk 0:02:53]} 3... Bg7 {[%clk 0:03:00.4]}
4. O-O {[%clk 0:02:52.8]} 4... O-O {[%clk 0:03:01]} 5. d4 {[%clk 0:02:52.7]}
5... d5 {[%clk 0:03:01.5]} 6. c4 {[%clk 0:02:52.4]} 6... c6 {[%clk 0:03:02.1]}
7. cxd5 {[%clk 0:02:52.5]} 7... cxd5 {[%clk 0:03:02.3]} 8. Ne5 {[%clk
0:02:51.9]} 8... Nc6 {[%clk 0:02:58.6]} 9. Nc3 {[%clk 0:02:46.1]} 9... Be6
{[%clk 0:02:40]} 10. Nxc6 {[%clk 0:02:41.8]} 10... bxc6 {[%clk 0:02:40.9]} 11.
Na4 {[%clk 0:02:41.9]} 11... Nd7 {[%clk 0:02:33]} 12. Be3 {[%clk 0:02:39.5]}
12... f5 {[%clk 0:01:59.6]} 13. Rc1 {[%clk 0:02:31]} 13... Rc8 {[%clk
0:02:00.1]} 14. b3 {[%clk 0:02:28]} 14... h6 {[%clk 0:01:37.8]} 15. h4 {[%clk
0:02:15.3]} 15... Kh7 {[%clk 0:01:36.5]} 16. Qd2 {[%clk 0:02:15.5]} 16... Nf6
{[%clk 0:01:28.4]} 17. Nc5 {[%clk 0:02:13]} 17... Bg8 {[%clk 0:01:23.5]} 18. f3
{[%clk 0:01:57.6]} 18... Nh5 {[%clk 0:01:19.8]} 19. Bf2 {[%clk 0:01:50.7]} 19...
e5 {[%clk 0:01:10.9]} 20. dxe5 {[%clk 0:01:46.9]} 20... Bxe5 {[%clk 0:01:11.8]}
21. f4 {[%clk 0:01:47.2]} 21... Bg7 {[%clk 0:01:03]} 22. Bf3 {[%clk 0:01:47.5]}
22... Nf6 {[%clk 0:01:03.1]} 23. Bd4 {[%clk 0:01:48]} 23... Ne4 {[%clk
0:01:03.1]} 24. Qe3 {[%clk 0:01:46.5]} 24... Nxc5 {[%clk 0:00:59.1]} 25. Bxg7
{[%clk 0:01:41.2]} 25... Kxg7 {[%clk 0:00:57.3]} 26. Qxc5 {[%clk 0:01:41.5]}
26... Re8 {[%clk 0:00:57.3]} 27. Qxa7+ {[%clk 0:01:39.6]} 27... Re7 {[%clk
0:00:57.8]} 28. Qd4+ {[%clk 0:01:39.8]} 28... Kh7 {[%clk 0:00:57.1]} 29. Kg2
{[%clk 0:01:35.8]} 29... Qe8 {[%clk 0:00:57.4]} 30. Rc2 {[%clk 0:01:35.4]} 30...
Be6 {[%clk 0:00:40.9]} 31. a4 {[%clk 0:01:27]} 31... Bd7 {[%clk 0:00:41.1]} 32.
a5 {[%clk 0:01:07.1]} 32... Re3 {[%clk 0:00:41.3]} 33. b4 {[%clk 0:01:05.7]}
33... Qe6 {[%clk 0:00:36.9]} 34. a6 {[%clk 0:00:57.3]} 34... Re4 {[%clk
0:00:37.3]} 35. Qc5 {[%clk 0:00:51.8]} 35... g5 {[%clk 0:00:21.3]} 36. hxg5
{[%clk 0:00:49.8]} 36... hxg5 {[%clk 0:00:22.2]} 37. Rh1+ {[%clk 0:00:50.2]}
37... Kg6 {[%clk 0:00:18.4]} 38. fxg5 {[%clk 0:00:50.2]} 38... f4 {[%clk
0:00:17.2]} 39. Rh6+ {[%clk 0:00:47.3]} 39... Kxg5 {[%clk 0:00:14.6]} 40. Rxe6
{[%clk 0:00:47.5]} 40... Rxe6 {[%clk 0:00:15.2]} 41. gxf4+ {[%clk 0:00:43.8]}
41... Kxf4 {[%clk 0:00:16.1]} 42. Qd4+ {[%clk 0:00:44]} 42... Kf5 {[%clk
0:00:15.9]} 43. Bg4+ {[%clk 0:00:44]} 1-0

[Event "*** Titled Tuesday Blitz"]
[Site "Chess.com"]
[Date "2021.03.30"]
[Round "2"]
[White "Khnykin_Nikolay"]
[Black "BvsN"]
[Result "0-1"]
[WhiteElo "2040"]
[BlackElo "2392"]
[TimeControl "180+1"]
[EndTime "10:16:58 PDT"]
[Termination "BvsN won on time"]

1. e4 {[%clk 0:03:00.9]} 1... c5 {[%clk 0:02:59.7]} 2. Nc3 {[%clk 0:02:57.5]}
2... e6 {[%clk 0:02:59.3]} 3. d4 {[%clk 0:02:49.9]} 3... cxd4 {[%clk 0:02:58.6]}
4. Qxd4 {[%clk 0:02:48.8]} 4... Nc6 {[%clk 0:02:58.7]} 5. Qd2 {[%clk 0:02:48.1]}
5... Nf6 {[%clk 0:02:57.2]} 6. b3 {[%clk 0:02:44.7]} 6... Bb4 {[%clk 0:02:54.1]}
7. Bb2 {[%clk 0:02:43.3]} 7... Nxe4 {[%clk 0:02:52.2]} 8. Qe3 {[%clk 0:02:38.4]}
8... Qa5 {[%clk 0:02:34.3]} 9. Ne2 {[%clk 0:02:19.3]} 9... d5 {[%clk 0:02:33.1]}
10. O-O-O {[%clk 0:02:12.7]} 10... Bc5 {[%clk 0:02:17.2]} 11. Nd4 {[%clk
0:01:13.6]} 11... Bxd4 {[%clk 0:01:52.7]} 12. Rxd4 {[%clk 0:01:09.9]} 12... Nxd4
{[%clk 0:01:49.1]} 13. Qxd4 {[%clk 0:01:08.9]} 13... Nf6 {[%clk 0:01:31.3]} 14.
Bb5+ {[%clk 0:01:03.6]} 14... Bd7 {[%clk 0:01:26.1]} 15. Bxd7+ {[%clk
0:01:01.3]} 15... Kxd7 {[%clk 0:01:25.1]} 16. Rd1 {[%clk 0:00:54.8]} 16... Rac8
{[%clk 0:01:16.1]} 17. f3 {[%clk 0:00:47.4]} 17... Rhd8 {[%clk 0:01:01.2]} 18.
Kb1 {[%clk 0:00:43.3]} 18... Ke8 {[%clk 0:01:00.6]} 19. Na4 {[%clk 0:00:18.6]}
19... Qc7 {[%clk 0:00:53.2]} 20. Rc1 {[%clk 0:00:15.4]} 20... b5 {[%clk
0:00:50.5]} 21. Nc3 {[%clk 0:00:13.4]} 21... a6 {[%clk 0:00:50.9]} 22. Ne2
{[%clk 0:00:12.3]} 22... Kf8 {[%clk 0:00:44.9]} 23. g4 {[%clk 0:00:10.4]} 23...
e5 {[%clk 0:00:44.1]} 24. Qxe5 {[%clk 0:00:09.6]} 24... Qxe5 {[%clk 0:00:39.6]}
25. Bxe5 {[%clk 0:00:09.4]} 25... Re8 {[%clk 0:00:39]} 26. f4 {[%clk 0:00:07.8]}
26... Ne4 {[%clk 0:00:36]} 27. Re1 {[%clk 0:00:05.2]} 27... f6 {[%clk 0:00:35]}
28. Bb2 {[%clk 0:00:03.7]} 28... Nd2+ {[%clk 0:00:30.9]} 29. Kc1 {[%clk
0:00:02.8]} 29... Nf3 {[%clk 0:00:31.1]} 30. Rf1 {[%clk 0:00:02]} 30... Rxe2
{[%clk 0:00:30.8]} 31. Rxf3 {[%clk 0:00:01.9]} 31... Rcxc2+ {[%clk 0:00:30.9]}
32. Kd1 {[%clk 0:00:01.4]} 32... Rxb2 {[%clk 0:00:30.8]} 0-1

[Event "*** Titled Tuesday Blitz"]
[Site "Chess.com"]
[Date "2021.03.30"]
[Round "2"]
[White "GMJustin"]
[Black "AradNazari"]
[Result "0-1"]
[WhiteElo "2300"]
[BlackElo "2496"]
[TimeControl "180+1"]
[EndTime "10:16:59 PDT"]
[Termination "AradNazari won on time"]

1. e4 {[%clk 0:02:56]} 1... e5 {[%clk 0:02:19.5]} 2. a3 {[%clk 0:02:50.9]} 2...
Nf6 {[%clk 0:02:19.3]} 3. Nc3 {[%clk 0:02:50.5]} 3... d5 {[%clk 0:02:18.2]} 4.
exd5 {[%clk 0:02:47.6]} 4... Nxd5 {[%clk 0:02:19.1]} 5. Bc4 {[%clk 0:02:45.5]}
5... Nxc3 {[%clk 0:02:17.7]} 6. Qf3 {[%clk 0:02:43.3]} 6... Qf6 {[%clk
0:01:47.2]} 7. Qxf6 {[%clk 0:02:36.2]} 7... gxf6 {[%clk 0:01:48.1]} 8. dxc3
{[%clk 0:02:36.4]} 8... Be6 {[%clk 0:01:47.9]} 9. Bxe6 {[%clk 0:02:18.5]} 9...
fxe6 {[%clk 0:01:48.8]} 10. Ne2 {[%clk 0:02:17.8]} 10... Nc6 {[%clk 0:01:46.4]}
11. O-O {[%clk 0:02:07.5]} 11... O-O-O {[%clk 0:01:43.2]} 12. Be3 {[%clk
0:01:51]} 12... f5 {[%clk 0:01:36.9]} 13. f3 {[%clk 0:01:50.7]} 13... Be7 {[%clk
0:01:35.1]} 14. Rad1 {[%clk 0:01:46.4]} 14... Bf6 {[%clk 0:01:34.6]} 15. Bf2
{[%clk 0:01:33.3]} 15... h5 {[%clk 0:01:32.5]} 16. h4 {[%clk 0:01:26.2]} 16...
Rdg8 {[%clk 0:01:31.2]} 17. Kh2 {[%clk 0:01:23.2]} 17... Rg7 {[%clk 0:01:30.1]}
18. Rg1 {[%clk 0:01:07.8]} 18... Rhg8 {[%clk 0:01:24.8]} 19. g3 {[%clk
0:01:05.3]} 19... b6 {[%clk 0:01:21]} 20. c4 {[%clk 0:00:58.7]} 20... e4 {[%clk
0:01:16.6]} 21. fxe4 {[%clk 0:00:47.9]} 21... Ne5 {[%clk 0:01:06.2]} 22. Kh3
{[%clk 0:00:35.1]} 22... Ng4 {[%clk 0:00:53.6]} 23. Rdf1 {[%clk 0:00:23.5]}
23... fxe4 {[%clk 0:00:49.7]} 24. Bd4 {[%clk 0:00:11.7]} 24... Bxd4 {[%clk
0:00:41.4]} 25. Nxd4 {[%clk 0:00:11.4]} 25... e5 {[%clk 0:00:42.1]} 26. Nf5
{[%clk 0:00:08.3]} 26... Rd7 {[%clk 0:00:42]} 27. Rg2 {[%clk 0:00:02.8]} 27...
Rgd8 {[%clk 0:00:36.8]} 28. Re2 {[%clk 0:00:02]} 28... Rd2 {[%clk 0:00:31.7]}
29. Rfe1 {[%clk 0:00:02.3]} 29... Rxe2 {[%clk 0:00:29.6]} 30. Rxe2 {[%clk
0:00:02.2]} 30... Rd1 {[%clk 0:00:29.9]} 31. Rxe4 {[%clk 0:00:02]} 31... Nf2+
{[%clk 0:00:29.7]} 32. Kg2 {[%clk 0:00:01.9]} 32... Nxe4 {[%clk 0:00:30.6]} 0-1

[Event "*** Titled Tuesday Blitz"]
[Site "Chess.com"]
[Date "2021.03.30"]
[Round "2"]
[White "JoliyRoger"]
[Black "onetowin"]
[Result "1-0"]
[WhiteElo "2381"]
[BlackElo "2001"]
[TimeControl "180+1"]
[EndTime "10:17:00 PDT"]
[Termination "JoliyRoger won by resignation"]

1. d4 {[%clk 0:02:59.7]} 1... Nf6 {[%clk 0:02:58.4]} 2. c4 {[%clk 0:02:59.7]}
2... e6 {[%clk 0:02:58]} 3. Nf3 {[%clk 0:02:56.9]} 3... d5 {[%clk 0:02:57.6]} 4.
cxd5 {[%clk 0:02:56.9]} 4... exd5 {[%clk 0:02:56.8]} 5. Nc3 {[%clk 0:02:57.8]}
5... c6 {[%clk 0:02:57]} 6. Bg5 {[%clk 0:02:58.4]} 6... Bd6 {[%clk 0:02:57]} 7.
Qc2 {[%clk 0:02:58.1]} 7... Bg4 {[%clk 0:02:51.3]} 8. e3 {[%clk 0:02:57.8]} 8...
Nbd7 {[%clk 0:02:32.4]} 9. Bd3 {[%clk 0:02:56.3]} 9... h6 {[%clk 0:02:21.8]} 10.
Bh4 {[%clk 0:02:45.8]} 10... Qc7 {[%clk 0:02:15.5]} 11. Bg3 {[%clk 0:02:45.6]}
11... O-O-O {[%clk 0:02:00.7]} 12. O-O-O {[%clk 0:02:35.9]} 12... Kb8 {[%clk
0:02:00.7]} 13. Kb1 {[%clk 0:02:36.1]} 13... Ka8 {[%clk 0:01:52.2]} 14. Rc1
{[%clk 0:02:36.4]} 14... Rb8 {[%clk 0:01:33.5]} 15. Nb5 {[%clk 0:02:28.4]} 15...
cxb5 {[%clk 0:01:19]} 16. Qxc7 {[%clk 0:02:26.3]} 16... Bxc7 {[%clk 0:01:19.9]}
17. Bxc7 {[%clk 0:02:25.8]} 17... Rbc8 {[%clk 0:01:19.5]} 18. Bxb5 {[%clk
0:02:26.1]} 18... Ne4 {[%clk 0:01:11.8]} 19. Bxd7 {[%clk 0:02:12.3]} 19... Bxd7
{[%clk 0:01:09.9]} 20. Ne5 {[%clk 0:02:12.8]} 20... Bb5 {[%clk 0:00:57.8]} 21.
Nxf7 {[%clk 0:01:38]} 21... Rhf8 {[%clk 0:00:53.5]} 22. Nd6 {[%clk 0:01:34.6]}
22... Nxf2 {[%clk 0:00:22]} 23. Nxc8 {[%clk 0:01:09.1]} 23... Nxh1 {[%clk
0:00:21.3]} 24. Be5 {[%clk 0:00:42.6]} 24... Nf2 {[%clk 0:00:18.8]} 25. Bxg7
{[%clk 0:00:34.6]} 25... Rg8 {[%clk 0:00:17.7]} 26. Ne7 {[%clk 0:00:28.2]} 26...
Bd3+ {[%clk 0:00:15.6]} 27. Ka1 {[%clk 0:00:28.3]} 27... Re8 {[%clk 0:00:15.6]}
28. Bf6 {[%clk 0:00:28.7]} 28... Ne4 {[%clk 0:00:14.3]} 29. Bh4 {[%clk
0:00:29.2]} 29... Ng5 {[%clk 0:00:12.6]} 30. Bxg5 {[%clk 0:00:28.7]} 30... hxg5
{[%clk 0:00:13.5]} 31. Nxd5 {[%clk 0:00:29.5]} 31... Be4 {[%clk 0:00:11.2]} 32.
Nc7+ {[%clk 0:00:29.7]} 1-0

[Event "*** Titled Tuesday Blitz"]
[Site "Chess.com"]
[Date "2021.03.30"]
[Round "2"]
[White "northridgehawk"]
[Black "albi1999"]
[Result "0-1"]
[WhiteElo "2308"]
[BlackElo "2621"]
[TimeControl "180+1"]
[EndTime "10:17:01 PDT"]
[Termination "albi1999 won by resignation"]

1. e4 {[%clk 0:03:00]} 1... c5 {[%clk 0:02:58.2]} 2. Nf3 {[%clk 0:02:59.3]} 2...
a6 {[%clk 0:02:56.7]} 3. c4 {[%clk 0:02:58.8]} 3... Nc6 {[%clk 0:02:55.5]} 4. d4
{[%clk 0:02:59.2]} 4... cxd4 {[%clk 0:02:54.8]} 5. Nxd4 {[%clk 0:03:00.1]} 5...
e5 {[%clk 0:02:55.4]} 6. Nc2 {[%clk 0:02:59.2]} 6... Bc5 {[%clk 0:02:50.7]} 7.
Bd3 {[%clk 0:02:58.9]} 7... d6 {[%clk 0:02:49.9]} 8. O-O {[%clk 0:02:59.3]} 8...
Nf6 {[%clk 0:02:49.7]} 9. a3 {[%clk 0:02:58.5]} 9... O-O {[%clk 0:02:48.8]} 10.
Nc3 {[%clk 0:02:58.2]} 10... h6 {[%clk 0:02:43.1]} 11. Be3 {[%clk 0:02:58.5]}
11... Bxe3 {[%clk 0:02:32.7]} 12. Nxe3 {[%clk 0:02:59.4]} 12... Be6 {[%clk
0:02:33.1]} 13. Qd2 {[%clk 0:02:54.8]} 13... Rc8 {[%clk 0:02:28.1]} 14. Rfd1
{[%clk 0:02:54.7]} 14... Nd4 {[%clk 0:02:26.6]} 15. Qe1 {[%clk 0:02:44.4]} 15...
Qe7 {[%clk 0:02:24.1]} 16. b4 {[%clk 0:02:44]} 16... Rfd8 {[%clk 0:02:16.1]} 17.
Rac1 {[%clk 0:02:43.9]} 17... Ng4 {[%clk 0:02:07.8]} 18. Ncd5 {[%clk 0:02:42.2]}
18... Qh4 {[%clk 0:02:03.3]} 19. Nxg4 {[%clk 0:02:37.5]} 19... Bxg4 {[%clk
0:02:04.2]} 20. f3 {[%clk 0:02:38]} 20... Qxe1+ {[%clk 0:02:03.3]} 21. Rxe1
{[%clk 0:02:37.6]} 21... Be6 {[%clk 0:02:02.3]} 22. Ne7+ {[%clk 0:02:36.9]}
22... Kf8 {[%clk 0:02:01.1]} 23. Nxc8 {[%clk 0:02:37.8]} 23... Rxc8 {[%clk
0:02:02]} 24. Kf2 {[%clk 0:02:36.8]} 24... Ke7 {[%clk 0:02:01.5]} 25. Ke3 {[%clk
0:02:37.1]} 25... Rc7 {[%clk 0:01:58.6]} 26. g3 {[%clk 0:02:36.5]} 26... f6
{[%clk 0:01:56.8]} 27. f4 {[%clk 0:02:37]} 27... b6 {[%clk 0:01:51.4]} 28. fxe5
{[%clk 0:02:36.7]} 28... fxe5 {[%clk 0:01:46.7]} 29. Rf1 {[%clk 0:02:35.8]}
29... Nb3 {[%clk 0:01:43.3]} 30. Rc2 {[%clk 0:02:32.1]} 30... Nd4 {[%clk
0:01:42.5]} 31. Rcc1 {[%clk 0:02:30.8]} 31... Nb3 {[%clk 0:01:42]} 32. Rb1
{[%clk 0:02:31]} 32... Nd4 {[%clk 0:01:41.1]} 33. Rfc1 {[%clk 0:02:29.9]} 33...
Kd8 {[%clk 0:01:34.3]} 34. a4 {[%clk 0:02:27]} 34... Rf7 {[%clk 0:01:32.3]} 35.
Rf1 {[%clk 0:02:25.5]} 35... Rc7 {[%clk 0:01:32.9]} 36. Rfc1 {[%clk 0:02:22.9]}
36... Rf7 {[%clk 0:01:32.3]} 37. Be2 {[%clk 0:02:23.6]} 37... Nxe2 {[%clk
0:01:12.8]} 38. Kxe2 {[%clk 0:02:24.5]} 38... Bg4+ {[%clk 0:01:13.4]} 39. Ke1
{[%clk 0:02:25.1]} 39... Bf3 {[%clk 0:01:09.1]} 40. c5 {[%clk 0:02:24.7]} 40...
Bxe4 {[%clk 0:01:06.5]} 41. Rb2 {[%clk 0:02:24.9]} 41... bxc5 {[%clk 0:01:05.3]}
42. bxc5 {[%clk 0:02:25]} 42... d5 {[%clk 0:01:05.9]} 43. c6 {[%clk 0:02:24.9]}
43... Rc7 {[%clk 0:01:05]} 44. Rb8+ {[%clk 0:02:23.6]} 44... Ke7 {[%clk
0:01:05.1]} 45. Rb7 {[%clk 0:02:23.9]} 45... Kd6 {[%clk 0:01:04]} 46. Rb6 {[%clk
0:02:21.2]} 46... Bd3 {[%clk 0:01:00]} 47. Kd2 {[%clk 0:02:20.4]} 47... e4
{[%clk 0:01:00.5]} 48. Ke3 {[%clk 0:02:20.3]} 48... Ke5 {[%clk 0:00:58.3]} 49.
Rc5 {[%clk 0:02:19.9]} 49... Bc4 {[%clk 0:00:44.5]} 50. Rb7 {[%clk 0:02:19.8]}
50... Kd6 {[%clk 0:00:40.1]} 51. Kd4 {[%clk 0:02:20.7]} 51... g5 {[%clk
0:00:33.8]} 52. Rb8 {[%clk 0:02:13.8]} 52... e3 {[%clk 0:00:31.1]} 53. Re8
{[%clk 0:02:10.8]} 53... e2 {[%clk 0:00:30.7]} 54. Rxc4 {[%clk 0:02:09.4]} 54...
dxc4 {[%clk 0:00:31.6]} 55. Rxe2 {[%clk 0:02:07.9]} 55... Rxc6 {[%clk
0:00:31.7]} 56. Rc2 {[%clk 0:02:04.7]} 56... c3 {[%clk 0:00:29.9]} 57. Rxc3
{[%clk 0:01:58.7]} 57... Rxc3 {[%clk 0:00:30.8]} 58. Kxc3 {[%clk 0:01:59.6]}
58... Kc5 {[%clk 0:00:31.6]} 59. Kb3 {[%clk 0:01:58.6]} 59... g4 {[%clk
0:00:30.2]} 60. Kc3 {[%clk 0:01:58.1]} 60... a5 {[%clk 0:00:30.3]} 61. Kd3
{[%clk 0:01:54]} 61... Kb4 {[%clk 0:00:30.4]} 62. Ke4 {[%clk 0:01:49]} 62...
Kxa4 {[%clk 0:00:30.8]} 63. Kf4 {[%clk 0:01:49.9]} 63... Kb3 {[%clk 0:00:29.7]}
64. Kxg4 {[%clk 0:01:50.8]} 64... a4 {[%clk 0:00:30.6]} 65. Kh5 {[%clk
0:01:51.4]} 65... a3 {[%clk 0:00:30.7]} 66. Kxh6 {[%clk 0:01:51.3]} 66... a2
{[%clk 0:00:31.6]} 67. h4 {[%clk 0:01:52]} 67... a1=Q {[%clk 0:00:31.9]} 68. g4
{[%clk 0:01:52.9]} 68... Qh8+ {[%clk 0:00:32]} 69. Kg5 {[%clk 0:01:53.4]} 69...
Kc4 {[%clk 0:00:31.9]} 70. h5 {[%clk 0:01:54.1]} 70... Kd5 {[%clk 0:00:32.8]}
71. h6 {[%clk 0:01:53.9]} 71... Ke6 {[%clk 0:00:33.2]} 72. Kg6 {[%clk
0:01:54.7]} 72... Qg8+ {[%clk 0:00:33.3]} 73. Kh5 {[%clk 0:01:54.8]} 73... Kf6
{[%clk 0:00:32]} 74. Kh4 {[%clk 0:01:54.7]} 74... Qg5+ {[%clk 0:00:31.5]} 75.
Kg3 {[%clk 0:01:55.2]} 75... Qxh6 {[%clk 0:00:31.8]} 0-1